bitfinex/quotes_ETHUSD_20240926
["timestamp","ask_amount","ask_price","bid_price","bid_amount"]
[1727353150008,0.0384425,2635.0,2634.9,4.48301864]
[1727353155441,0.0384425,2635.0,2634.9,5.29111864]
[1727353155729,0.0384425,2635.0,2634.9,5.36701765]
[1727353156303,0.0384425,2635.0,2634.9,8.36701765]
[1727353156504,0.0384425,2635.0,2634.9,8.29111864]
[1727353156698,0.0384425,2635.0,2634.9,9.23785171]
[1727353157098,0.0384425,2635.8,2635.6,3.79406]
[1727353157312,0.0384425,2635.8,2635.7,8.5399067]
[1727353157532,0.0384425,2635.8,2635.7,9.34665426]
[1727353158690,0.0384425,2635.8,2635.7,4.60079756]
[1727353160103,0.0384425,2635.8,2635.7,3.84359756]
[1727353161398,0.0384425,2635.8,2635.7,0.04954756]
[1727353161628,0.0384425,2635.8,2635.7,3.84359756]
[1727353163013,0.0384425,2635.8,2635.7,0.04954756]
[1727353163405,0.0384425,2635.8,2635.6,3.79417]
[1727353163742,0.0384425,2635.8,2635.7,0.04911076]
[1727353163908,0.0384425,2635.8,2635.6,3.79417]
[1727353164093,0.0384425,2635.8,2635.7,0.04911076]
[1727353164427,0.0384425,2635.8,2635.7,3.84316076]
[1727353167705,0.0384425,2635.8,2635.7,0.04911076]
[1727353168453,5.05594975,2635.8,2635.7,0.04911076]
[1727353168612,4.5953525,2635.8,2635.7,0.04911076]
[1727353168814,3.79407,2635.7,2635.2,3.79468]
[1727353169110,4.55721,2635.6,2635.1,3.79487]
[1727353169304,4.55721,2635.6,2635.2,3.79476]
[1727353170143,0.763,2635.6,2635.1,3.79477]
[1727353170315,0.763,2635.1,2634.6,4.61744]
[1727353170516,1.218785,2635.1,2634.8,3.79532]
[1727353170823,3.79445,2635.5,2634.9,3.79517]
[1727353170824,0.763,2635.3,2634.9,3.79517]
[1727353172250,7.58911,2635.4,2634.8,3.79532]
[1727353172410,7.58911,2635.4,2634.9,3.7952]
[1727353172411,3.79449,2635.4,2634.9,3.7952]
[1727353173310,3.79449,2635.4,2634.8,4.636599]
[1727353173548,3.79464,2635.3,2634.8,4.636599]
[1727353174315,3.79533,2634.9,2634.4,3.7958]
[1727353174831,3.79539,2634.8,2634.3,0.7852]
[1727353175149,0.7767,2634.6,2634.1,0.7852]
[1727353175459,0.7767,2634.6,2634.1,5.62552]
[1727353175460,4.57241,2634.6,2634.1,5.62552]
[1727353175611,4.57241,2634.6,2634.0,3.79638]
[1727353175612,3.79585,2634.5,2634.0,3.79638]
[1727353176118,3.79585,2634.5,2634.0,7.59279]
[1727353176324,0.7767,2634.6,2634.1,3.79635]
[1727353176850,0.7767,2634.6,2634.2,3.79609]
[1727353177348,4.57235,2634.6,2634.0,4.634199]
[1727353177655,4.57235,2634.6,2634.1,0.84147529]
[1727353180151,4.57235,2634.6,2634.1,4.63781529]
[1727353180549,4.57235,2634.6,2634.1,0.84147529]
[1727353180739,3.79582,2634.5,2634.0,3.79642]
[1727353181561,4.57235,2634.6,2634.1,3.79626]
[1727353181713,4.57235,2634.6,2634.0,3.79642]
[1727353182118,4.57235,2634.6,2634.1,3.79631]
[1727353182451,4.57235,2634.6,2634.1,4.93363839]
[1727353182956,4.57235,2634.6,2634.1,1.13732839]
[1727353183155,3.79586,2634.5,2634.2,0.04764149]
[1727353183822,3.79586,2634.5,2634.0,7.59282]
[1727353184054,3.79586,2634.5,2634.3,0.0475551]
[1727353184213,4.57235,2634.6,2634.0,3.79641]
[1727353184417,8.36807,2634.6,2634.4,0.04746871]
[1727353184620,3.79579,2634.5,2634.0,3.79641]
[1727353184854,3.79579,2634.5,2634.0,4.63421]
[1727353185723,4.57235,2634.6,2634.2,3.79619]
[1727353186657,4.57235,2634.6,2634.2,3.79618]
[1727353186857,0.7767,2634.6,2634.3,3.796]
[1727353187161,0.7767,2634.6,2634.4,0.3796]
[1727353189171,0.7767,2634.6,2634.2,0.8251]
[1727353189470,4.57234,2634.6,2634.2,0.8251]
[1727353189676,4.57234,2634.6,2634.2,4.62128]
[1727353190179,3.79585,2634.5,2634.0,4.63424]
[1727353190374,3.79601,2634.4,2633.9,3.79654]
[1727353190869,3.79601,2634.4,2634.0,3.79649]
[1727353191069,3.79601,2634.4,2634.0,0.759303]
[1727353191277,3.79601,2634.4,2633.9,3.79664]
[1727353191578,3.79601,2634.4,2633.9,7.59312]
[1727353191870,7.59203,2634.4,2633.9,3.79655]
[1727353192075,0.8271,2634.2,2634.0,0.379655]
[1727353194458,0.8271,2634.2,2633.9,3.79655]
[1727353194785,0.8271,2634.2,2633.9,7.59312]
[1727353194980,0.8271,2634.2,2633.9,3.79655]
[1727353195476,0.8271,2634.2,2633.7,4.55482]
[1727353195477,0.8271,2634.2,2633.7,0.758]
[1727353195781,0.8271,2634.2,2633.8,4.61652]
[1727353195985,4.62332,2634.2,2633.8,4.61652]
[1727353196164,0.8271,2634.2,2633.8,4.61652]
[1727353196564,0.8271,2634.2,2633.9,3.79662]
[1727353196863,0.8271,2634.2,2633.8,4.61652]
[1727353197182,0.8271,2634.2,2633.9,0.537452]
[1727353197487,0.8271,2634.2,2634.0,3.79649]
[1727353198279,0.8271,2634.2,2634.1,0.04861595]
[1727353199086,4.59333,2634.4,2634.1,0.04861595]
[1727353199584,0.7974,2634.4,2634.1,0.04861595]
[1727353200979,4.59339,2634.4,2634.1,0.04861595]
[1727353202243,0.7974,2634.4,2634.1,3.84488595]
[1727353202556,0.7882,2634.8,2634.3,1.74679367]
[1727353202754,0.7882,2634.8,2634.2,0.04718303]
[1727353202972,0.7882,2634.8,2634.0,3.79649]
[1727353202973,0.7882,2634.4,2634.0,3.79649]
[1727353203169,0.7882,2634.4,2634.3,0.04709663]
[1727353203359,0.7882,2634.4,2634.1,3.79634]
[1727353203568,0.7882,2634.4,2634.3,0.04709663]
[1727353203786,0.7882,2634.4,2634.0,8.427842]
[1727353203942,0.7882,2634.4,2634.1,4.3351432]
[1727353204145,3.79581,2634.5,2634.1,4.3351432]
[1727353204529,3.79581,2634.5,2634.2,0.04720431]
[1727353205033,7.59167,2634.5,2634.2,0.04720431]
[1727353205212,3.79581,2634.5,2634.2,0.04720431]
[1727353205379,3.79581,2634.5,2634.0,3.79641]
[1727353205591,4.55695,2634.6,2634.3,0.04711791]
[1727353205803,4.55695,2634.6,2634.1,3.79627]
[1727353206008,4.55695,2634.6,2634.4,0.04703153]
[1727353206203,4.55695,2634.6,2634.2,3.79619]
[1727353206441,4.55695,2634.6,2634.5,0.04694515]
[1727353206638,0.7613,2634.6,2634.2,3.79619]
[1727353206920,0.7613,2634.6,2634.5,0.04694515]
[1727353207119,0.7613,2634.6,2634.2,3.79619]
[1727353207418,4.55694,2634.6,2634.2,4.61843204]
[1727353207619,0.7613,2634.6,2634.3,0.04711791]
[1727353207930,0.7613,2634.6,2634.3,3.79605]
[1727353208115,3.79552,2634.7,2634.3,5.4259062]
[1727353208313,3.79552,2634.7,2634.4,0.04703153]
[1727353208690,3.79566,2634.6,2634.2,3.7962]
[1727353208889,0.8113,2634.5,2634.1,3.7963]
[1727353209085,0.8113,2634.5,2634.3,0.04711791]
[1727353209285,0.8113,2634.5,2634.2,0.04720431]
[1727353209591,0.8113,2634.5,2634.3,0.04711791]
[1727353209790,0.8113,2634.5,2634.0,4.43299637]
[1727353210031,0.8113,2634.5,2634.4,0.04703153]
[1727353210230,0.8113,2634.5,2634.2,3.7962]
[1727353210390,0.8113,2634.5,2634.4,0.04703153]
[1727353210757,0.8113,2634.5,2634.2,3.7962]
[1727353210758,0.8113,2634.5,2634.2,7.59232]
[1727353211023,0.8113,2634.5,2634.4,0.04703153]
[1727353211239,0.8113,2634.5,2634.2,8.41520464]
[1727353211393,0.8113,2634.5,2634.4,0.04703153]
[1727353211588,0.8113,2634.5,2634.2,8.41520464]
[1727353211816,0.8113,2634.5,2634.4,0.04703153]
[1727353212029,0.8113,2634.5,2634.3,3.84316195]
[1727353212232,0.8113,2634.5,2634.4,0.04701556]
[1727353213246,4.57652,2634.7,2634.4,0.04701556]
[1727353213409,0.781,2634.7,2634.4,3.79592]
[1727353213605,7.59052,2634.9,2634.5,0.04692918]
[1727353213825,3.79536,2634.8,2634.5,0.04692918]
[1727353214405,0.7669,2635.4,2634.6,3.79551]
[1727353214647,3.79484,2635.2,2634.8,3.79534]
[1727353215011,3.79484,2635.2,2634.9,0.04658373]
[1727353216414,3.79484,2635.2,2635.0,0.04632716]
[1727353216631,3.79484,2635.2,2634.8,4.81189337]
[1727353216806,3.79484,2635.2,2635.1,0.04624082]
[1727353217020,3.79484,2635.2,2634.8,4.81189337]
[1727353217021,3.79484,2635.2,2634.8,3.79533]
[1727353217220,3.79484,2635.2,2635.1,0.04624082]
[1727353217454,3.79484,2635.2,2634.8,3.79533]
[1727353217668,3.79484,2635.2,2635.1,0.04624082]
[1727353217966,3.79484,2635.2,2634.8,3.79533]
[1727353218269,4.5615,2635.4,2635.1,0.04624082]
[1727353218434,4.5797,2635.6,2635.1,2.51809367]
[1727353218628,4.5797,2635.6,2635.2,0.04615449]
[1727353218629,0.7854,2635.6,2635.2,0.04615449]
[1727353218831,3.79463,2635.3,2635.2,0.04615449]
[1727353219034,3.79463,2635.3,2634.9,0.8275]
[1727353219225,0.8106,2635.2,2634.8,3.7953]
[1727353219445,4.60539,2635.2,2634.8,3.7953]
[1727353219817,4.60539,2635.2,2634.7,8.2675]
[1727353220017,4.60539,2635.2,2634.7,13.44396137]
[1727353220459,8.40026,2635.2,2634.7,13.44396137]
[1727353220669,4.60539,2635.2,2634.7,13.44396137]
[1727353221023,0.8106,2635.2,2634.8,3.79535]
[1727353221223,0.8106,2635.2,2634.7,9.64849137]
[1727353221426,4.60547,2635.2,2634.7,9.64849137]
[1727353221717,4.60547,2635.2,2634.8,3.79533]
[1727353222532,4.60547,2635.2,2634.7,12.06291]
[1727353223264,3.79497,2635.1,2634.7,11.23541]
[1727353223781,8.40034,2635.2,2634.7,11.23541]
[1727353223997,0.7877,2635.0,2634.3,0.7731]
[1727353224143,3.79521,2634.9,2634.4,3.79581]
[1727353224339,3.79521,2634.9,2634.5,3.79576]
[1727353224542,4.58277,2635.0,2634.5,3.79576]
[1727353224766,3.79535,2634.8,2634.3,0.7731]
[1727353224985,3.79564,2634.6,2634.2,3.79611]
[1727353225478,4.5828,2634.7,2634.2,3.79611]
[1727353225685,3.79565,2634.6,2634.0,4.59579]
[1727353225838,3.79565,2634.6,2634.2,3.7962]
[1727353226243,0.7873,2634.7,2634.0,2.17765837]
[1727353226467,4.58289,2634.7,2634.1,3.79622]
[1727353226656,4.58289,2634.7,2634.3,3.79605]
[1727353227899,4.58287,2634.7,2634.1,3.79622]
[1727353228112,3.7957,2634.6,2634.1,3.79622]
[1727353228259,3.7957,2634.6,2634.2,0.0466139]
[1727353228463,0.8193,2634.5,2634.2,0.0466139]
[1727353228705,3.796,2634.4,2634.2,0.0466139]
[1727353228864,3.796,2634.4,2634.0,3.79647]
[1727353229065,3.796,2634.4,2634.3,0.04517456]
[1727353229306,3.796,2634.4,2634.0,3.79647]
[1727353229598,4.61544,2634.3,2633.8,3.79677]
[1727353230260,0.8193,2634.3,2633.9,3.79663]
[1727353230461,4.61538,2634.3,2633.9,3.79663]
[1727353230881,0.8193,2634.3,2633.9,3.79663]
[1727353231275,0.8193,2634.3,2634.0,3.7964]
[1727353231459,7.57366,2634.6,2634.1,0.759303]
[1727353231660,7.57366,2634.6,2634.0,0.779]
[1727353232488,3.778,2634.6,2634.2,3.79611]
[1727353232810,3.778,2634.6,2634.0,0.85492147]
[1727353232811,0.778,2634.6,2634.3,3.79599]
[1727353233761,0.778,2634.6,2634.0,0.779]
[1727353233968,0.778,2634.6,2634.2,3.79609]
[1727353234307,0.778,2634.6,2634.2,7.59218]
[1727353234804,3.79536,2634.8,2634.4,4.60502]
[1727353234805,0.7899,2634.8,2634.4,4.60502]
[1727353234970,4.58531,2634.8,2634.4,4.60502]
[1727353236066,4.58531,2634.8,2634.3,3.79606]
[1727353236407,0.7899,2634.8,2634.4,3.79592]
[1727353236578,0.7899,2634.8,2634.4,3.79585]
[1727353236778,4.56513,2635.0,2634.6,3.79563]
[1727353237395,4.56513,2635.0,2634.6,3.79556]
[1727353237396,0.77,2635.0,2634.6,3.79556]
[1727353237778,4.56507,2635.0,2634.6,3.79556]
[1727353238512,4.56507,2635.0,2634.5,0.7797]
[1727353238694,3.79537,2634.8,2634.4,3.79582]
[1727353238900,0.77,2635.0,2634.3,0.7958]
[1727353239070,3.79552,2634.7,2634.3,0.7958]
[1727353239403,3.79552,2634.7,2634.2,3.79611]
[1727353239404,0.7865,2634.6,2634.2,3.79611]
[1727353239768,4.58221,2634.6,2634.2,3.79611]
[1727353240281,0.7865,2634.6,2634.0,12.04888]
[1727353240483,3.79578,2634.5,2634.0,6.19223983]
[1727353240680,3.79578,2634.5,2634.0,9.98865983]
[1727353240863,3.79578,2634.5,2634.0,6.19223983]
[1727353241063,3.79578,2634.5,2634.1,4.41556398]
[1727353242698,4.58214,2634.6,2634.1,4.41556398]
[1727353243317,4.55054183,2635.0,2634.3,0.7699]
[1727353243318,0.7503,2635.0,2634.3,0.7699]
[1727353243492,3.79482,2635.2,2634.8,3.79532]
[1727353243694,0.8191,2635.4,2634.8,3.79525]
[1727353243934,0.8191,2635.4,2635.0,3.795]
[1727353244250,0.0384425,2635.8,2635.7,3.79405]
[1727353244546,0.0384425,2635.8,2635.6,3.79418]
[1727353244692,0.0384425,2635.8,2635.7,0.09196618]
[1727353245093,0.0384425,2635.8,2635.5,4.5593]
[1727353245292,0.0384425,2635.8,2635.7,0.09196618]
[1727353245536,0.0384425,2635.8,2635.3,0.7625]
[1727353245537,3.8323525,2635.8,2635.6,0.09205429]
[1727353245719,3.8323525,2635.8,2635.7,0.09196618]
[1727353246231,3.8323525,2635.8,2635.0,11.23498]
[1727353246232,3.79428,2635.6,2635.0,11.23498]
[1727353246439,4.60368,2635.7,2635.0,3.79498]
[1727353246753,3.79435,2635.5,2634.9,0.8122]
[1727353246902,5.05843051,2635.7,2634.7,4.60769]
[1727353247095,0.8095,2635.2,2634.7,4.60769]
[1727353247293,1.269922,2635.2,2634.7,0.8122]
[1727353247494,1.269922,2635.2,2634.6,11.23563]
[1727353247734,0.8095,2635.2,2634.6,11.23553]
[1727353247907,3.79492,2635.1,2634.6,11.23553]
[1727353248106,3.79495,2635.1,2634.6,11.23553]
[1727353248360,0.8095,2635.2,2634.7,3.79545]
[1727353248535,0.8095,2635.2,2634.7,4.919003]
[1727353248839,4.60429,2635.2,2634.7,1.123553]
[1727353249144,4.60429,2635.2,2634.6,11.23553]
[1727353249448,3.79502,2635.1,2634.5,3.79576]
[1727353250297,8.39917,2635.2,2634.6,3.79562]
[1727353250611,3.79524,2634.9,2634.4,3.79585]
[1727353250797,4.634861,2635.1,2634.4,3.79581]
[1727353250798,8.429911,2635.1,2634.4,3.79581]
[1727353251000,3.79524,2634.9,2634.4,3.79581]
[1727353251200,0.9239411,2635.0,2634.2,3.79614]
[1727353251427,4.58387,2634.7,2634.2,3.79614]
[1727353251971,7.5914,2634.6,2634.1,8.05922398]
[1727353252231,3.79565,2634.6,2634.1,7.44]
[1727353252431,3.79587,2634.5,2634.1,7.44]
[1727353252893,3.79587,2634.5,2634.0,3.79647]
[1727353252894,4.254287,2634.5,2634.0,3.79647]
[1727353253098,4.254287,2634.5,2634.0,3.79639]
[1727353253459,0.7883,2634.7,2634.3,3.79604]
[1727353254128,0.7883,2634.7,2634.3,7.59202]
[1727353254314,0.7883,2634.7,2634.3,3.79598]
[1727353254514,0.7883,2634.7,2634.3,7.59197]
[1727353254940,0.7883,2634.7,2634.3,3.79598]
[1727353255260,5.421781,2634.7,2633.9,7.59309]
[1727353255412,3.79588,2634.5,2634.0,3.79642]
[1727353255855,3.79594,2634.4,2633.9,3.79654]
[1727353256011,3.79588,2634.5,2634.0,3.7965]
[1727353256213,4.254298,2634.5,2634.0,3.7965]
[1727353256535,4.254278,2634.5,2634.0,3.7965]
[1727353256949,4.254278,2634.5,2633.7,3.79684]
[1727353256950,3.79633,2634.2,2633.7,3.79684]
[1727353257177,0.462483,2634.2,2633.7,3.7968]
[1727353257359,7.58086826,2634.3,2633.7,3.7968]
[1727353257512,3.79615,2634.3,2633.7,3.7968]
[1727353257711,3.79625,2634.2,2633.7,3.7968]
[1727353257926,3.79625,2634.2,2633.8,3.79676]
[1727353258250,3.79608,2634.3,2633.8,3.88769525]
[1727353258442,3.79622,2634.2,2633.8,0.09093525]
[1727353258610,4.63699583,2634.3,2633.5,3.79716]
[1727353258814,3.79643,2634.1,2633.9,0.09085235]
[1727353259015,3.79643,2634.1,2633.6,3.79707]
[1727353259240,3.79643,2634.1,2634.0,0.09076412]
[1727353259449,3.79643,2634.1,2633.6,3.79707]
[1727353259626,3.79643,2634.1,2634.0,0.09076412]
[1727353259954,3.79643,2634.1,2633.4,0.7846]
[1727353259955,0.89799754,2634.1,2633.4,0.7846]
[1727353260155,3.79624,2634.2,2634.0,0.09076412]
[1727353260361,3.79618,2634.3,2633.8,3.79673]
[1727353260513,4.62448,2634.4,2634.1,0.0907238]
[1727353260714,4.62448,2634.4,2633.9,3.79664]
[1727353260715,0.8285,2634.4,2633.9,3.79664]
[1727353260914,0.8285,2634.4,2634.2,0.09064091]
[1727353261225,0.8285,2634.4,2634.3,0.09055271]
[1727353261412,0.8285,2634.4,2634.1,3.79628]
[1727353261748,0.8285,2634.4,2634.3,0.09055271]
[1727353261917,0.8285,2634.4,2634.2,3.88673091]
[1727353262117,0.8285,2634.4,2634.3,0.09055271]
[1727353262422,4.57025,2634.8,2634.4,3.79585]
[1727353262621,0.7749,2634.8,2634.4,8.01015231]
[1727353262957,0.7749,2634.8,2634.5,3.88594944]
[1727353263526,3.79514,2635.0,2634.6,3.79563]
[1727353263927,0.7835,2635.1,2634.7,0.09000308]
[1727353264127,0.7835,2635.1,2634.7,3.88548308]
[1727353264722,4.5646,2635.4,2634.9,3.7952]
[1727353264926,3.79464,2635.3,2634.9,3.7952]
[1727353265167,4.55471826,2635.4,2635.0,0.08976518]
[1727353265375,3.79492,2635.1,2635.0,0.08976518]
[1727353265865,3.79492,2635.1,2634.6,3.79554]
[1727353266069,3.79492,2635.1,2635.0,0.08976518]
[1727353266229,3.79492,2635.1,2634.6,3.79554]
[1727353266230,3.79492,2635.1,2634.6,3.79563]
[1727353266431,3.79492,2635.1,2635.0,0.08976518]
[1727353266643,0.80452618,2635.1,2634.6,3.79563]
[1727353266856,7.58972,2635.2,2635.0,0.08976518]
[1727353267057,3.79485,2635.2,2634.7,3.79548]
[1727353267368,7.58973,2635.2,2635.1,0.08967703]
[1727353267536,4.55471826,2635.4,2634.9,3.79509]
[1727353267537,0.77,2635.4,2634.9,3.79509]
[1727353267866,0.77,2635.4,2635.0,0.08976518]
[1727353268036,0.77,2635.4,2635.0,3.88471518]
[1727353268526,8.35913,2635.4,2635.0,0.08976518]
[1727353268732,3.79486,2635.2,2635.0,0.08976518]
[1727353269032,3.79492,2635.1,2634.5,3.79568]
[1727353269243,3.79492,2635.1,2634.6,3.79561]
[1727353269423,7.57935826,2635.3,2634.7,3.79547]
[1727353269623,12.33044257,2635.3,2634.7,3.79547]
[1727353269860,8.53573257,2635.3,2634.5,3.79565]
[1727353270228,8.53573257,2635.3,2634.6,3.79554]
[1727353270431,3.79479,2635.2,2634.6,3.79554]
[1727353270663,3.79479,2635.2,2634.5,3.79565]
[1727353270862,4.34306591,2635.2,2634.7,3.79547]
[1727353271074,3.79494,2635.1,2634.5,7.5913]
[1727353271362,1.66737385,2635.1,2634.5,3.79565]
[1727353271572,3.79479,2635.2,2634.6,3.7955]
[1727353273063,3.79479,2635.2,2634.7,0.0898754]
[1727353273638,3.7951,2635.0,2634.7,0.0898754]
[1727353273861,0.7981,2634.9,2634.3,3.796]
[1727353274169,0.7981,2634.9,2634.8,0.08978723]
[1727353274759,0.7981,2634.9,2634.3,3.796]
[1727353274963,0.7981,2634.9,2634.8,0.08978723]
[1727353274964,4.59334,2634.9,2634.8,0.08978723]
[1727353275141,5.432175,2634.9,2634.4,3.79589]
[1727353275342,5.432175,2634.9,2634.3,3.79595]
[1727353275343,1.636935,2634.9,2634.8,0.08869384]
[1727353275547,1.636935,2634.9,2634.5,3.79575]
[1727353275741,1.636935,2634.9,2634.8,0.08869384]
[1727353275989,1.636935,2634.9,2634.5,3.79575]
[1727353276149,1.636935,2634.9,2634.8,0.08869384]
[1727353276370,1.636935,2634.9,2634.5,3.79575]
[1727353276551,1.636935,2634.9,2634.8,0.08869384]
[1727353276728,0.7981,2634.9,2634.5,3.79575]
[1727353276925,0.7981,2634.9,2634.8,0.08869384]
[1727353277177,0.7981,2634.9,2634.5,3.79575]
[1727353277470,3.79501,2635.1,2634.5,3.79575]
[1727353277471,4.61191,2635.1,2634.5,3.79575]
[1727353277643,4.61191,2635.1,2634.6,0.08891271]
[1727353277845,6.13104283,2635.1,2634.6,0.08891271]
[1727353278087,6.13104283,2635.1,2634.6,3.88450271]
[1727353278779,9.92608283,2635.1,2634.6,3.88450271]
[1727353278961,3.79507,2635.0,2634.6,3.88450271]
[1727353279839,3.79507,2635.0,2634.6,0.08891271]
[1727353281572,3.79507,2635.0,2634.6,3.88453271]
[1727353282271,3.79507,2635.0,2634.6,0.08891271]
[1727353282478,3.79507,2635.0,2634.6,3.79563]
[1727353282682,3.79507,2635.0,2634.7,0.08880327]
[1727353282838,3.79469,2635.3,2634.7,0.86280327]
[1727353283041,4.55919,2635.4,2635.0,3.79505]
[1727353283585,4.55919,2635.4,2635.1,0.08845063]
[1727353284167,3.79418,2635.7,2635.1,4.65728063]
[1727353284168,0.7647,2635.6,2635.1,4.65728063]
[1727353284338,3.79418,2635.7,2635.1,4.65728063]
[1727353284339,3.79418,2635.7,2635.3,3.79462]
[1727353284673,4.5971325,2635.8,2635.4,0.08807992]
[1727353285172,0.8031425,2635.8,2635.4,0.08807992]
[1727353285377,3.79407,2635.7,2635.4,0.08807992]
[1727353285686,3.79407,2635.7,2635.2,4.26049806]
[1727353286009,3.79421,2635.6,2635.5,0.0879918]
[1727353286136,3.79421,2635.6,2635.1,0.774]
[1727353286476,3.79421,2635.6,2635.0,3.79504]
[1727353286477,3.79438,2635.5,2635.0,3.79504]
[1727353286653,3.79438,2635.5,2635.0,7.59003]
[1727353286853,3.79438,2635.5,2635.0,3.79499]
[1727353287149,4.55945,2635.5,2635.0,3.79499]
[1727353287350,3.79449,2635.4,2634.9,4.55627]
[1727353287666,4.55945,2635.5,2635.0,3.79506]
[1727353287870,4.55945,2635.5,2635.0,7.59004]
[1727353288041,4.55945,2635.5,2635.1,0.08790856]
[1727353289078,3.79452,2635.4,2635.1,0.08790856]
[1727353289262,0.455945,2635.4,2635.0,3.79506]
[1727353289463,4.55951,2635.5,2635.2,0.08781511]
[1727353289639,4.55951,2635.5,2635.0,3.79506]
[1727353289844,3.79455,2635.4,2635.3,0.08772697]
[1727353290143,3.79478,2635.2,2634.7,3.79541]
[1727353290344,3.79498,2635.1,2634.6,4.62433]
[1727353290646,4.62228,2635.0,2634.6,3.79553]
[1727353292025,0.8272,2635.0,2634.6,3.79553]
[1727353292237,0.8272,2635.0,2634.4,4.61553]
[1727353292411,3.79521,2634.9,2634.5,3.79574]
[1727353294322,0.8272,2635.0,2634.5,3.79574]
[1727353294482,0.8272,2635.0,2634.6,3.79564]
[1727353294689,3.79528,2634.9,2634.4,8.41138]
[1727353295193,3.79528,2634.9,2634.5,3.79576]
[1727353296023,4.62228,2635.0,2634.5,7.59145]
[1727353296938,3.79529,2634.9,2634.3,3.79599]
[1727353297093,0.7688,2634.6,2634.1,7.44]
[1727353297297,3.79584,2634.5,2634.0,3.7964]
[1727353297543,0.7688,2634.6,2634.1,3.79623]
[1727353297690,0.7688,2634.6,2634.2,3.79619]
[1727353298117,0.7688,2634.6,2634.1,3.79635]
[1727353298490,0.7688,2634.6,2634.3,3.79605]
[1727353302290,0.7688,2634.6,2634.2,3.79619]
[1727353302991,0.7688,2634.6,2634.3,3.79606]
[1727353303158,0.7688,2634.6,2634.3,0.08916136]
[1727353303349,5.400439,2634.6,2634.3,0.08916136]
[1727353303546,1.604799,2634.6,2634.3,3.79605]
[1727353303771,0.7688,2634.6,2634.4,0.08907316]
[1727353304589,4.56444,2634.6,2634.4,0.08907316]
[1727353305090,4.56444,2634.6,2634.5,0.08898497]
[1727353305289,4.56444,2634.6,2634.1,3.79635]
[1727353305290,0.7688,2634.6,2634.3,3.79606]
[1727353305495,0.7688,2634.6,2634.5,0.08898497]
[1727353305802,0.7688,2634.6,2634.3,3.79606]
[1727353306132,0.7688,2634.6,2634.4,0.08907316]
[1727353307372,4.5645,2634.6,2634.4,0.08907316]
[1727353307575,5.400501,2634.6,2634.4,0.08907316]
[1727353307789,5.400501,2634.6,2634.1,3.79629]
[1727353307955,5.400501,2634.6,2634.5,0.08898497]
[1727353308597,3.79586,2634.5,2633.9,4.60368]
[1727353308805,7.56444,2634.6,2634.5,0.08898497]
[1727353309098,7.56444,2634.6,2633.4,3.79728]
[1727353309099,4.56858,2633.9,2633.4,3.79728]
[1727353309394,0.7719,2633.9,2633.4,3.7973]
[1727353309695,3.79679,2633.8,2633.5,0.08707489]
[1727353310053,7.59371,2633.8,2633.5,0.08707489]
[1727353310293,3.79679,2633.8,2633.5,0.08707489]
[1727353310587,3.79679,2633.8,2633.2,7.59521]
[1727353310588,4.21694814,2633.8,2633.2,7.59521]
[1727353310889,3.79679,2633.8,2633.3,3.79744]
[1727353311064,3.79679,2633.8,2633.3,3.88497321]
[1727353311691,3.79679,2633.8,2633.3,0.08753321]
[1727353311980,3.79709,2633.6,2633.3,0.08753321]
[1727353312160,4.253659,2633.8,2633.2,3.79758]
[1727353312161,8.050569,2633.8,2633.2,3.79758]
[1727353312369,3.79701,2633.7,2633.4,0.08744495]
[1727353312699,4.60084,2633.5,2633.0,3.79794]
[1727353312878,3.79737,2633.4,2633.0,3.79794]
[1727353313206,4.60084,2633.5,2633.0,4.638967]
[1727353314772,3.79737,2633.4,2633.0,0.841027]
[1727353314960,3.79737,2633.4,2632.9,4.61222]
[1727353315165,4.58831826,2633.5,2632.7,0.833]
[1727353315366,3.79789,2633.1,2632.6,3.8369525]
[1727353315592,3.79838,2632.7,2632.6,0.0384425]
[1727353316476,6.79838,2632.7,2632.6,0.0384425]
[1727353316662,11.34829826,2632.7,2632.6,0.0384425]
[1727353316868,12.86295109,2632.7,2632.6,0.0384425]
[1727353318603,9.07823283,2632.7,2632.6,0.12735943]
[1727353318911,9.07823283,2632.7,2632.6,0.0384425]
[1727353319383,9.07823283,2632.7,2632.6,0.12735943]
[1727353320124,9.07823283,2632.7,2632.6,0.0384425]
[1727353321609,12.86295109,2632.7,2632.6,0.0384425]
[1727353324744,14.86295109,2632.7,2632.6,0.0384425]
[1727353325751,14.86295109,2632.7,2631.8,0.0384425]
[1727353325752,4.60383,2631.9,2631.8,0.0384425]
[1727353325914,11.38854826,2631.9,2631.8,0.0384425]
[1727353326115,7.60383,2631.9,2631.8,0.0384425]
[1727353327530,6.79953,2631.9,2631.8,0.0384425]
[1727353327875,3.0,2631.9,2631.8,0.12834336]
[1727353328162,0.7658,2632.2,2631.8,0.12834336]
[1727353328163,3.79932,2632.1,2631.8,0.0384425]
[1727353328333,3.79932,2632.1,2631.8,0.12834336]
[1727353328542,3.7994,2632.0,2631.8,0.0384425]
[1727353328762,3.7994,2632.0,2631.9,0.08981249]
[1727353330567,4.635846,2632.0,2631.9,0.08981249]
[1727353330881,3.79953,2631.9,2631.8,0.0384425]
[1727353331252,3.79953,2631.9,2631.8,0.12816749]
[1727353331467,3.0,2632.1,2631.8,0.12816749]
[1727353331885,6.79925,2632.1,2631.8,0.12816749]
[1727353332186,6.79925,2632.1,2631.9,0.8093]
[1727353332699,6.79925,2632.1,2631.8,0.12816749]
[1727353332700,3.79925,2632.1,2632.0,0.08954827]
[1727353332993,4.559086,2632.1,2632.0,0.08954827]
[1727353333293,4.559086,2632.1,2631.8,0.0384425]
[1727353333294,3.7995,2632.0,2631.8,0.0384425]
[1727353333647,3.79939,2632.0,2631.8,0.0384425]
[1727353334100,3.79925,2632.1,2631.8,0.0384425]
[1727353334389,3.0,2632.4,2632.0,0.8093]